[Event "African Online-ch Open 2021"]
[Site "Online"]
[Date "2021.02.01"]
[Round "1.9"]
[White "Silva, David"]
[Black "Kamara, Ansumana"]
[Result "1-0"]
[WhiteElo "2258"]
[BlackElo "1899"]
[PlyCount "43"]
[EventDate "2021.02.01"]
[EventType "swiss"]
[EventCountry "NET"]
[TimeControl "1500+10"]
[WhiteClock "0:24:19"]
[BlackClock "0:18:55"]

1. e4 {[%emt 0:00:00]} c5 {[%emt 0:00:08]} 2. Nf3 {[%emt 0:00:13]} d6 {[%emt 0:00:03]} 3. d4 {[%emt 0:00:10]} cxd4 {[%emt 0:00:04]} 4. Nxd4 {[%emt 0:00:03]} Nf6 {[%emt 0:00:05]} 5. Nc3 {[%emt 0:00:05]} a6 {[%emt 0:00:03]} 6. a3 {[%emt 0:00:04]} e5 {[%emt 0:00:09]} 7. Nf5 {[%emt 0:00:04]} d5 {[%emt 0:00:12]} 8. Bg5 {[%emt 0:00:10]} Bxf5 {[%emt 0:00:57]} 9. Bxf6 {[%emt 0:00:43]} gxf6 {[%emt 0:00:13]} 10. exf5 {[%emt 0:00:06]} d4 {[%emt 0:00:04]} 11. Ne4 {[%emt 0:00:05]} Be7 {[%emt 0:00:16]} 12. Qh5 {[%emt 0:00:54]} Qd5 {[%emt 0:00:47]} 13. Nd2 {[%emt 0:00:26]} b5 {[%emt 0:00:20]} 14. Bd3 {[%emt 0:00:09]} Nc6 {[%emt 0:00:34]} 15. Be4 {[%emt 0:00:06]} Qd6 {[%emt 0:00:05]} 16. O-O {[%emt 0:00:10]} O-O {[%emt 0:01:00]} 17. a4 {[%emt 0:00:17]} Rab8 {[%emt 0:00:22]} 18. axb5 {[%emt 0:00:06]} axb5 {[%emt 0:00:16]} 19. Ra3 {[%emt 0:00:05]} Nb4 {[%emt 0:00:29]} 20. Rg3+ {[%emt 0:00:12]} Kh8 {[%emt 0:00:29]} 21. Rh3 {[%emt 0:00:04]} Rg8 {[%emt 0:02:59]} 22. Qxh7# {[%emt 0:00:09]} 1-0

[Event "African Online-ch Open 2021"]
[Site "Online"]
[Date "2021.02.01"]
[Round "1.10"]
[White "Bongo Akanga Ndjila, Barthelemy"]
[Black "Amdouni, Zoubaier"]
[Result "1/2-1/2"]
[WhiteElo "1803"]
[BlackElo "2229"]
[PlyCount "88"]
[EventDate "2021.02.01"]
[EventType "swiss"]
[EventCountry "NET"]
[TimeControl "1500+10"]
[WhiteClock "0:03:04"]
[BlackClock "0:00:58"]

1. d4 {[%emt 0:00:00]} d5 {[%emt 0:00:06]} 2. Nf3 {[%emt 0:00:05]} Nf6 {[%emt 0:00:04]} 3. Bg5 {[%emt 0:00:42]} e6 {[%emt 0:00:09]} 4. e3 {[%emt 0:00:09]} Nbd7 {[%emt 0:00:21]} 5. Bd3 {[%emt 0:01:25]} c6 {[%emt 0:00:05]} 6. O-O {[%emt 0:00:21]} Bd6 {[%emt 0:00:15]} 7. c4 {[%emt 0:00:13]} O-O {[%emt 0:00:44]} 8. Qc2 {[%emt 0:00:10]} h6 {[%emt 0:00:07]} 9. Bh4 {[%emt 0:00:03]} dxc4 {[%emt 0:00:13]} 10. Bxc4 {[%emt 0:00:56]} e5 {[%emt 0:00:04]} 11. dxe5 {[%emt 0:01:16]} Nxe5 {[%emt 0:00:17]} 12. Nxe5 {[%emt 0:00:06]} Bxe5 {[%emt 0:00:03]} 13. Rd1 {[%emt 0:00:03]} Bxh2+ {[%emt 0:01:32]} 14. Kh1 {[%emt 0:00:56]} Bd6 {[%emt 0:00:07]} 15. Bg3 {[%emt 0:00:18]} Ne8 {[%emt 0:00:58]} 16. Qd2 {[%emt 0:04:10]} Qf6 {[%emt 0:01:11]} 17. Bxd6 {[%emt 0:00:12]} Nxd6 {[%emt 0:00:03]} 18. Qxd6 {[%emt 0:00:17]} Qh4+ {[%emt 0:00:26]} 19. Kg1 {[%emt 0:00:12]} Qxc4 {[%emt 0:00:02]} 20. Nc3 {[%emt 0:00:09]} Qe6 {[%emt 0:00:35]} 21. Qc7 {[%emt 0:00:15]} Qg6 {[%emt 0:00:05]} 22. Rd4 {[%emt 0:00:36]} Bh3 {[%emt 0:01:14]} 23. Qh2 {[%emt 0:00:07]} Be6 {[%emt 0:00:07]} 24. Rad1 {[%emt 0:00:24]} c5 {[%emt 0:04:15]} 25. Rd6 {[%emt 0:00:48]} Qg4 {[%emt 0:01:04]} 26. e4 {[%emt 0:01:32]} Rae8 {[%emt 0:04:03]} 27. f3 {[%emt 0:01:31]} Qg5 {[%emt 0:00:03]} 28. f4 {[%emt 0:00:06]} Qg4 {[%emt 0:00:04]} 29. f5 {[%emt 0:00:05]} Bc4 {[%emt 0:00:44]} 30. f6 {[%emt 0:00:43]} Re6 {[%emt 0:01:11]} 31. fxg7 {[%emt 0:00:20]} Kxg7 {[%emt 0:00:11]} 32. b3 {[%emt 0:00:41]} Ba6 {[%emt 0:00:34]} 33. Rxe6 {[%emt 0:00:20]} fxe6 {[%emt 0:05:15]} 34. Qe5+ {[%emt 0:00:55]} Kg8 {[%emt 0:01:05]} 35. Qxc5 {[%emt 0:01:32]} Qg3 {[%emt 0:00:03]} 36. Qd4 {[%emt 0:01:17]} Rf7 {[%emt 0:00:47]} 37. b4 {[%emt 0:00:39]} Rg7 {[%emt 0:01:17]} 38. Rd2 {[%emt 0:04:14]} Bc4 {[%emt 0:00:04]} 39. e5 {[%emt 0:01:03]} b5 {[%emt 0:00:07]} 40. Ne4 {[%emt 0:00:17]} Qe1+ {[%emt 0:00:04]} 41. Kh2 {[%emt 0:00:01]} Qh4+ {[%emt 0:00:02]} 42. Kg1 {[%emt 0:00:02]} Qe1+ {[%emt 0:00:27]} 43. Kh2 {[%emt 0:00:02]} Qh4+ {[%emt 0:01:12]} 44. Kg1 {[%emt 0:00:03]} Qe1+ {[%emt 0:00:02] #D} 1/2-1/2

[Event "African Online-ch Open 2021"]
[Site "Online"]
[Date "2021.02.01"]
[Round "1.12"]
[White "Singe, Philip Mbawala"]
[Black "Bouzidi, Ahmed"]
[Result "0-1"]
[WhiteElo "1857"]
[BlackElo "2163"]
[PlyCount "52"]
[EventDate "2021.02.01"]
[EventType "swiss"]
[EventCountry "NET"]
[TimeControl "1500+10"]
[WhiteClock "0:13:22"]
[BlackClock "0:18:12"]

1. e4 {[%emt 0:00:00]} e5 {[%emt 0:00:15]} 2. Nf3 {[%emt 0:00:04]} Nc6 {[%emt 0:00:04]} 3. d4 {[%emt 0:00:02]} exd4 {[%emt 0:00:08]} 4. Bc4 {[%emt 0:00:02]} Bc5 {[%emt 0:01:19]} 5. Ng5 {[%emt 0:00:07]} Nh6 {[%emt 0:00:03]} 6. Nxf7 {[%emt 0:00:02]} Nxf7 {[%emt 0:00:03]} 7. Bxf7+ {[%emt 0:00:04]} Kxf7 {[%emt 0:00:02]} 8. Qh5+ {[%emt 0:00:03]} g6 {[%emt 0:00:29]} 9. Qd5+ {[%emt 0:00:10]} Kg7 {[%emt 0:00:17]} 10. Qxc5 {[%emt 0:00:02]} d6 {[%emt 0:00:05]} 11. Qb5 {[%emt 0:00:04]} Re8 {[%emt 0:01:07]} 12. Nd2 {[%emt 0:01:21]} d5 {[%emt 0:00:30]} 13. f3 {[%emt 0:00:52]} dxe4 {[%emt 0:01:05]} 14. Nxe4 {[%emt 0:00:16]} Rxe4+ {[%emt 0:01:42]} 15. fxe4 {[%emt 0:00:06]} Qh4+ {[%emt 0:00:04]} 16. Kf1 {[%emt 0:00:43]} Be6 {[%emt 0:01:08]} 17. h3 {[%emt 0:08:35]} Rf8+ {[%emt 0:00:23]} 18. Kg1 {[%emt 0:00:05]} Qf2+ {[%emt 0:00:07]} 19. Kh2 {[%emt 0:00:04]} Rf3 {[%emt 0:00:02]} 20. Qb3 {[%emt 0:02:32]} Bxb3 {[%emt 0:00:11]} 21. axb3 {[%emt 0:00:02]} Ne5 {[%emt 0:01:46]} 22. Bg5 {[%emt 0:00:25]} Qg3+ {[%emt 0:00:08]} 23. Kg1 {[%emt 0:00:04]} Qxg5 {[%emt 0:00:03]} 24. Rxa7 {[%emt 0:00:04]} Qe3+ {[%emt 0:00:03]} 25. Kh2 {[%emt 0:00:03]} Rxh3+ {[%emt 0:00:03]} 26. gxh3 {[%emt 0:00:06]} Qf2# {[%emt 0:00:01]} 0-1

[Event "African Online-ch Open 2021"]
[Site "Online"]
[Date "2021.02.01"]
[Round "1.13"]
[White "Seddaoui, Yamine"]
[Black "Khalema, Sechaba"]
[Result "1-0"]
[WhiteElo "2127"]
[BlackElo "1827"]
[PlyCount "75"]
[EventDate "2021.02.01"]
[EventType "swiss"]
[EventCountry "NET"]
[TimeControl "1500+10"]
[WhiteClock "0:17:32"]
[BlackClock "0:23:46"]

1. e4 {[%emt 0:00:00]} e5 {[%emt 0:01:18]} 2. Nf3 {[%emt 0:00:05]} Nc6 {[%emt 0:00:05]} 3. Bb5 {[%emt 0:00:43]} a6 {[%emt 0:00:12]} 4. Bxc6 {[%emt 0:00:04]} dxc6 {[%emt 0:00:17]} 5. O-O {[%emt 0:00:04]} Be6 {[%emt 0:00:09]} 6. Nxe5 {[%emt 0:00:32]} Qd4 {[%emt 0:00:07]} 7. Nf3 {[%emt 0:00:18]} Qxe4 {[%emt 0:00:04]} 8. Re1 {[%emt 0:00:02]} Qg6 {[%emt 0:00:04]} 9. Nd4 {[%emt 0:01:49]} O-O-O {[%emt 0:00:04]} 10. Nxe6 {[%emt 0:00:02]} fxe6 {[%emt 0:00:02]} 11. d3 {[%emt 0:00:01]} Bd6 {[%emt 0:00:10]} 12. Qe2 {[%emt 0:00:03]} Re8 {[%emt 0:00:03]} 13. Nc3 {[%emt 0:00:04]} Nf6 {[%emt 0:00:03]} 14. Ne4 {[%emt 0:00:10]} Rhf8 {[%emt 0:00:07]} 15. Nxd6+ {[%emt 0:01:23]} cxd6 {[%emt 0:00:05]} 16. Bf4 {[%emt 0:00:33]} e5 {[%emt 0:00:04]} 17. Bg3 {[%emt 0:00:02]} Nd5 {[%emt 0:00:04]} 18. Qe4 {[%emt 0:02:00]} Qxe4 {[%emt 0:01:15]} 19. dxe4 {[%emt 0:00:07]} Nf6 {[%emt 0:00:06]} 20. Rad1 {[%emt 0:00:04]} Re6 {[%emt 0:00:05]} 21. f3 {[%emt 0:00:14]} Nh5 {[%emt 0:00:04]} 22. Bf2 {[%emt 0:00:08]} g5 {[%emt 0:00:04]} 23. Rd2 {[%emt 0:00:26]} Kc7 {[%emt 0:00:05]} 24. Red1 {[%emt 0:00:06]} Rg6 {[%emt 0:00:06]} 25. h3 {[%emt 0:00:19]} c5 {[%emt 0:00:09]} 26. a3 {[%emt 0:00:33]} a5 {[%emt 0:00:15]} 27. b3 {[%emt 0:00:25]} Ra8 {[%emt 0:00:18]} 28. c3 {[%emt 0:00:18]} Ra6 {[%emt 0:00:06]} 29. b4 {[%emt 0:00:35]} axb4 {[%emt 0:00:06]} 30. axb4 {[%emt 0:00:03]} b6 {[%emt 0:00:03]} 31. bxc5 {[%emt 0:00:14]} bxc5 {[%emt 0:00:04]} 32. Rb2 {[%emt 0:00:05]} Rb6 {[%emt 0:00:04]} 33. Ra2 {[%emt 0:01:00]} Rg8 {[%emt 0:00:04]} 34. Ra7+ {[%emt 0:00:19]} Kc6 {[%emt 0:00:11]} 35. Rxh7 {[%emt 0:00:09]} Nf4 {[%emt 0:00:05]} 36. Kf1 {[%emt 0:00:32]} Ra6 {[%emt 0:01:01]} 37. Rh6 {[%emt 0:00:08]} Rd8 {[%emt 0:00:15]} 38. g3 {[%emt 0:00:08] #r} 1-0

[Event "African Online-ch Open 2021"]
[Site "Online"]
[Date "2021.02.01"]
[Round "1.14"]
[White "Njoroge Martin"]
[Black "Oatlhotse, Providence"]
[Result "0-1"]
[WhiteElo "1965"]
[BlackElo "2190"]
[PlyCount "74"]
[EventDate "2021.02.01"]
[EventType "swiss"]
[EventCountry "NET"]
[TimeControl "1500+10"]
[WhiteClock "0:12:16"]
[BlackClock "0:16:02"]

1. Nf3 {[%emt 0:00:00]} c5 {[%emt 0:00:09]} 2. c4 {[%emt 0:00:04]} Nc6 {[%emt 0:00:02]} 3. Nc3 {[%emt 0:00:03]} g6 {[%emt 0:00:02]} 4. e3 {[%emt 0:00:17]} Bg7 {[%emt 0:00:02]} 5. g3 {[%emt 0:00:01]} Nf6 {[%emt 0:00:37]} 6. Bg2 {[%emt 0:00:05]} O-O {[%emt 0:00:04]} 7. O-O {[%emt 0:00:04]} b6 {[%emt 0:00:04]} 8. Qe2 {[%emt 0:00:06]} Ba6 {[%emt 0:00:08]} 9. Rb1 {[%emt 0:00:07]} Rc8 {[%emt 0:00:18]} 10. d3 {[%emt 0:00:04]} d5 {[%emt 0:00:21]} 11. Rd1 {[%emt 0:01:33]} e6 {[%emt 0:00:40]} 12. b3 {[%emt 0:00:23]} Qd7 {[%emt 0:02:25]} 13. Bb2 {[%emt 0:00:07]} Rfd8 {[%emt 0:00:13]} 14. Qe1 {[%emt 0:00:18]} d4 {[%emt 0:00:23]} 15. exd4 {[%emt 0:00:08]} Nxd4 {[%emt 0:00:08]} 16. Nxd4 {[%emt 0:00:06]} cxd4 {[%emt 0:00:02]} 17. Ne4 {[%emt 0:00:24]} Ne8 {[%emt 0:00:36]} 18. f4 {[%emt 0:00:15]} h6 {[%emt 0:00:22]} 19. Qd2 {[%emt 0:00:52]} Bb7 {[%emt 0:00:37]} 20. Qf2 {[%emt 0:00:24]} Bc6 {[%emt 0:01:24]} 21. Re1 {[%emt 0:00:06]} Nc7 {[%emt 0:00:22]} 22. h4 {[%emt 0:02:44]} Ne8 {[%emt 0:01:21]} 23. Bf3 {[%emt 0:00:14]} Nd6 {[%emt 0:01:26]} 24. Nxd6 {[%emt 0:01:58]} Qxd6 {[%emt 0:00:08]} 25. Bxc6 {[%emt 0:00:05]} Qxc6 {[%emt 0:00:42]} 26. Re4 {[%emt 0:00:32]} Rd7 {[%emt 0:00:12]} 27. Bxd4 {[%emt 0:01:44]} Qxe4 {[%emt 0:00:20]} 28. Bxg7 {[%emt 0:00:41]} Qxd3 {[%emt 0:00:09]} 29. Qb2 {[%emt 0:00:16]} Qxg3+ {[%emt 0:00:11]} 30. Kh1 {[%emt 0:00:06]} Qxh4+ {[%emt 0:00:10]} 31. Kg1 {[%emt 0:00:03]} Qg4+ {[%emt 0:00:18]} 32. Kh1 {[%emt 0:00:04]} Qf3+ {[%emt 0:00:31]} 33. Kg1 {[%emt 0:00:05]} Qe3+ {[%emt 0:00:11]} 34. Kh1 {[%emt 0:00:12]} Rd2 {[%emt 0:00:11]} 35. Qc3 {[%emt 0:04:25]} Qe4+ {[%emt 0:00:12]} 36. Qf3 {[%emt 0:00:16]} Qxf3+ {[%emt 0:00:05]} 37. Kg1 {[%emt 0:00:02]} Qg2# {[%emt 0:00:02]} 0-1

[Event "African Online-ch Open 2021"]
[Site "Online"]
[Date "2021.02.01"]
[Round "1.16"]
[White "Vermaak, Ashley Christopher"]
[Black "Oliveira, Luciano"]
[Result "0-1"]
[WhiteElo "1751"]
[BlackElo "2115"]
[PlyCount "74"]
[EventDate "2021.02.01"]
[EventType "swiss"]
[EventCountry "NET"]
[TimeControl "1500+10"]
[WhiteClock "0:01:19"]
[BlackClock "0:07:24"]

1. d4 {[%emt 0:00:00]} d5 {[%emt 0:00:08]} 2. c4 {[%emt 0:00:04]} e6 {[%emt 0:00:18]} 3. Nf3 {[%emt 0:00:06]} Nf6 {[%emt 0:00:06]} 4. Nc3 {[%emt 0:00:04]} Be7 {[%emt 0:00:08]} 5. Bf4 {[%emt 0:00:06]} O-O {[%emt 0:00:53]} 6. e3 {[%emt 0:00:07]} c6 {[%emt 0:00:15]} 7. Be2 {[%emt 0:00:36]} dxc4 {[%emt 0:00:44]} 8. a4 {[%emt 0:00:06]} Nd5 {[%emt 0:00:39]} 9. O-O {[%emt 0:03:22]} Nxf4 {[%emt 0:00:27]} 10. exf4 {[%emt 0:00:05]} c5 {[%emt 0:01:12]} 11. d5 {[%emt 0:05:58]} exd5 {[%emt 0:02:34]} 12. Nxd5 {[%emt 0:00:44]} Nc6 {[%emt 0:00:53]} 13. Ne5 {[%emt 0:03:44]} Nd4 {[%emt 0:05:08]} 14. Bxc4 {[%emt 0:00:08]} Be6 {[%emt 0:00:17]} 15. Nxe7+ {[%emt 0:03:27]} Qxe7 {[%emt 0:00:07]} 16. Bxe6 {[%emt 0:00:13]} Qxe6 {[%emt 0:00:08]} 17. Re1 {[%emt 0:01:22]} Qf5 {[%emt 0:00:34]} 18. Rc1 {[%emt 0:00:51]} b6 {[%emt 0:01:29]} 19. Qg4 {[%emt 0:00:20]} Qxg4 {[%emt 0:00:18]} 20. Nxg4 {[%emt 0:00:04]} Rfe8 {[%emt 0:00:07]} 21. Ne3 {[%emt 0:00:34]} Re4 {[%emt 0:00:32]} 22. b4 {[%emt 0:01:11]} cxb4 {[%emt 0:00:56]} 23. Rc4 {[%emt 0:02:21]} Rae8 {[%emt 0:01:48]} 24. Rxb4 {[%emt 0:00:25]} Nf3+ {[%emt 0:00:20]} 25. gxf3 {[%emt 0:00:36]} Rxb4 {[%emt 0:00:05]} 26. Ra1 {[%emt 0:00:13]} Rxf4 {[%emt 0:00:16]} 27. a5 {[%emt 0:00:13]} b5 {[%emt 0:00:26]} 28. a6 {[%emt 0:00:16]} Ra4 {[%emt 0:00:19]} 29. Rb1 {[%emt 0:00:05]} Rb8 {[%emt 0:00:16]} 30. Nd5 {[%emt 0:01:24]} Rxa6 {[%emt 0:00:13]} 31. Nc7 {[%emt 0:00:16]} Rc6 {[%emt 0:00:53]} 32. Rxb5 {[%emt 0:00:16]} Rxb5 {[%emt 0:00:06]} 33. Nxb5 {[%emt 0:00:03]} a5 {[%emt 0:00:09]} 34. Kf1 {[%emt 0:00:05]} Rc5 {[%emt 0:00:24]} 35. Nd4 {[%emt 0:00:07]} a4 {[%emt 0:00:08]} 36. Ke1 {[%emt 0:00:15]} a3 {[%emt 0:00:08]} 37. Kd2 {[%emt 0:00:04]} Rd5 {[%emt 0:00:22] #R} 0-1

[Event "African Online-ch Open 2021"]
[Site "Online"]
[Date "2021.02.01"]
[Round "1.17"]
[White "Paiva, Donaldo"]
[Black "Ebersohn, Raymond Gerhard"]
[Result "1-0"]
[WhiteElo "2230"]
[BlackElo "1726"]
[PlyCount "91"]
[EventDate "2021.02.01"]
[EventType "swiss"]
[EventCountry "NET"]
[TimeControl "1500+10"]
[WhiteClock "0:00:21"]
[BlackClock "0:02:29"]

1. c4 {[%emt 0:00:00]} Nf6 {[%emt 0:00:51]} 2. g3 {[%emt 0:00:07]} e6 {[%emt 0:00:07]} 3. Bg2 {[%emt 0:00:06]} d5 {[%emt 0:00:05]} 4. Nf3 {[%emt 0:00:04]} c6 {[%emt 0:00:09]} 5. Qc2 {[%emt 0:00:22]} Nbd7 {[%emt 0:00:20]} 6. O-O {[%emt 0:00:04]} Bd6 {[%emt 0:00:30]} 7. d4 {[%emt 0:00:09]} O-O {[%emt 0:00:15]} 8. Nbd2 {[%emt 0:00:06]} Qe7 {[%emt 0:01:09]} 9. e4 {[%emt 0:01:18]} dxe4 {[%emt 0:00:11]} 10. Nxe4 {[%emt 0:00:04]} Nxe4 {[%emt 0:00:04]} 11. Qxe4 {[%emt 0:00:04]} Nf6 {[%emt 0:00:03]} 12. Qe2 {[%emt 0:00:03]} h6 {[%emt 0:01:30]} 13. Bd2 {[%emt 0:01:16]} Qc7 {[%emt 0:01:41]} 14. Rfd1 {[%emt 0:01:45]} b6 {[%emt 0:00:38]} 15. Rac1 {[%emt 0:00:37]} c5 {[%emt 0:00:33]} 16. dxc5 {[%emt 0:00:17]} Bxc5 {[%emt 0:00:15]} 17. Bf4 {[%emt 0:00:10]} Qe7 {[%emt 0:00:25]} 18. a3 {[%emt 0:01:27]} a5 {[%emt 0:00:04]} 19. Ne5 {[%emt 0:07:35]} Bb7 {[%emt 0:00:06]} 20. Nc6 {[%emt 0:00:04]} Bxc6 {[%emt 0:00:04]} 21. Bxc6 {[%emt 0:00:04]} Rac8 {[%emt 0:00:02]} 22. Bf3 {[%emt 0:00:13]} Rfd8 {[%emt 0:02:07]} 23. Be5 {[%emt 0:00:11]} Nd7 {[%emt 0:01:09]} 24. Bc3 {[%emt 0:00:12]} e5 {[%emt 0:01:04]} 25. Bg4 {[%emt 0:00:11]} f6 {[%emt 0:00:43]} 26. Rd5 {[%emt 0:00:12]} Rc6 {[%emt 0:00:23]} 27. Rcd1 {[%emt 0:05:00]} Rd6 {[%emt 0:00:06]} 28. b4 {[%emt 0:00:59]} Rxd5 {[%emt 0:00:10]} 29. Rxd5 {[%emt 0:00:04]} axb4 {[%emt 0:00:03]} 30. axb4 {[%emt 0:00:03]} Bd6 {[%emt 0:01:00]} 31. Qd2 {[%emt 0:01:44]} Nf8 {[%emt 0:00:10]} 32. h4 {[%emt 0:03:06]} Bc7 {[%emt 0:00:15]} 33. h5 {[%emt 0:00:08]} Rd6 {[%emt 0:00:55]} 34. c5 {[%emt 0:00:24]} bxc5 {[%emt 0:00:10]} 35. bxc5 {[%emt 0:00:03]} Rc6 {[%emt 0:01:09]} 36. Bb4 {[%emt 0:00:08]} Qf7 {[%emt 0:04:13]} 37. Bf3 {[%emt 0:00:17]} Re6 {[%emt 0:00:25]} 38. Bd1 {[%emt 0:00:20]} Kh8 {[%emt 0:00:57]} 39. Bb3 {[%emt 0:01:45]} Qxh5 {[%emt 0:00:05]} 40. Rd7 {[%emt 0:00:10]} Qf3 {[%emt 0:01:23]} 41. Bxe6 {[%emt 0:00:17]} Nxe6 {[%emt 0:00:04]} 42. Rxc7 {[%emt 0:00:11]} Nd4 {[%emt 0:01:58]} 43. Qe3 {[%emt 0:00:28]} Qg4 {[%emt 0:01:19]} 44. Rb7 {[%emt 0:00:22]} Nf3+ {[%emt 0:01:08]} 45. Kf1 {[%emt 0:00:05]} Nh2+ {[%emt 0:00:03]} 46. Kg2 {[%emt 0:00:04] #r} 1-0

[Event "African Online-ch Open 2021"]
[Site "Online"]
[Date "2021.02.01"]
[Round "1.18"]
[White "Hamzaoui, Khalil"]
[Black "Abdelazeez, Mohamed Abdalla"]
[Result "0-1"]
[WhiteElo "1883"]
[BlackElo "2214"]
[PlyCount "54"]
[EventDate "2021.02.01"]
[EventType "swiss"]
[EventCountry "NET"]
[TimeControl "1500+10"]
[WhiteClock "0:01:13"]
[BlackClock "0:17:20"]

1. g3 {[%emt 0:00:00]} d5 {[%emt 0:00:08]} 2. Bg2 {[%emt 0:00:16]} c6 {[%emt 0:00:04]} 3. Nf3 {[%emt 0:00:21]} Nf6 {[%emt 0:00:07]} 4. O-O {[%emt 0:00:07]} Bf5 {[%emt 0:00:05]} 5. d3 {[%emt 0:01:32]} e6 {[%emt 0:00:15]} 6. c4 {[%emt 0:00:54]} h6 {[%emt 0:00:06]} 7. cxd5 {[%emt 0:00:24]} exd5 {[%emt 0:00:06]} 8. Qb3 {[%emt 0:01:01]} Qb6 {[%emt 0:00:08]} 9. Nc3 {[%emt 0:01:51]} Nbd7 {[%emt 0:00:11]} 10. e4 {[%emt 0:01:42]} dxe4 {[%emt 0:00:12]} 11. dxe4 {[%emt 0:00:05]} Be6 {[%emt 0:00:05]} 12. Qc2 {[%emt 0:00:19]} Be7 {[%emt 0:03:36]} 13. Be3 {[%emt 0:00:41]} Qa5 {[%emt 0:00:26]} 14. Nd4 {[%emt 0:00:23]} Bc4 {[%emt 0:01:12]} 15. Nf5 {[%emt 0:02:23]} Bxf1 {[%emt 0:00:18]} 16. Bxf1 {[%emt 0:01:28]} Bf8 {[%emt 0:00:31]} 17. e5 {[%emt 0:02:10]} Ng4 {[%emt 0:01:09] Black stopped clock for 232 seconds. Arbiter stopped clock for 6 seconds.} 18. Re1 {[%emt 0:03:29]} Nxe3 {[%emt 0:00:27]} 19. Rxe3 {[%emt 0:00:03]} O-O-O {[%emt 0:00:09]} 20. Nb5 {[%emt 0:00:52]} Kb8 {[%emt 0:01:21]} 21. Nbd6 {[%emt 0:04:38]} Bxd6 {[%emt 0:00:09]} 22. Nxd6 {[%emt 0:00:12]} Nxe5 {[%emt 0:00:05]} 23. Ra3 {[%emt 0:02:20]} Qd5 {[%emt 0:00:42]} 24. Ne4 {[%emt 0:00:31]} f5 {[%emt 0:00:15]} 25. Nc5 {[%emt 0:00:04]} Nf3+ {[%emt 0:00:10]} 26. Rxf3 {[%emt 0:00:21]} Qxf3 {[%emt 0:00:06]} 27. Qb3 {[%emt 0:00:10]} Qxb3 {[%emt 0:00:07] #R} 0-1

[Event "African Online-ch Open 2021"]
[Site "Online"]
[Date "2021.02.01"]
[Round "1.19"]
[White "Pascoal, Eduardo A"]
[Black "Likoko, Elvis"]
[Result "1/2-1/2"]
[WhiteElo "2184"]
[BlackElo "1646"]
[PlyCount "71"]
[EventDate "2021.02.01"]
[EventType "swiss"]
[EventCountry "NET"]
[TimeControl "1500+10"]
[WhiteClock "0:01:47"]
[BlackClock "0:13:10"]

1. d4 {[%emt 0:00:00]} Nf6 {[%emt 0:00:05]} 2. Bf4 {[%emt 0:00:09]} d6 {[%emt 0:00:32]} 3. e3 {[%emt 0:00:07]} g6 {[%emt 0:00:04]} 4. h3 {[%emt 0:00:15]} Bg7 {[%emt 0:00:04]} 5. Nf3 {[%emt 0:00:04]} O-O {[%emt 0:00:05]} 6. c4 {[%emt 0:00:05]} c5 {[%emt 0:00:10]} 7. Nc3 {[%emt 0:00:04]} Bf5 {[%emt 0:00:09]} 8. Be2 {[%emt 0:00:04]} Nc6 {[%emt 0:01:39]} 9. O-O {[%emt 0:00:57]} cxd4 {[%emt 0:00:05]} 10. exd4 {[%emt 0:00:08]} Rc8 {[%emt 0:00:12]} 11. Rc1 {[%emt 0:01:54]} Qa5 {[%emt 0:00:16]} 12. Be3 {[%emt 0:01:00]} Ne4 {[%emt 0:00:13]} 13. Qb3 {[%emt 0:04:42]} Nxc3 {[%emt 0:02:30]} 14. Qxc3 {[%emt 0:04:32]} Qxc3 {[%emt 0:00:21]} 15. Rxc3 {[%emt 0:00:07]} e5 {[%emt 0:00:05]} 16. Rd1 {[%emt 0:02:02]} Rfe8 {[%emt 0:00:58]} 17. Kf1 {[%emt 0:01:43]} Be4 {[%emt 0:00:12]} 18. dxe5 {[%emt 0:03:35]} dxe5 {[%emt 0:00:08]} 19. Nd2 {[%emt 0:01:15]} Bf5 {[%emt 0:00:13]} 20. g4 {[%emt 0:00:36]} Be6 {[%emt 0:00:11]} 21. Ne4 {[%emt 0:00:04]} Rcd8 {[%emt 0:00:50]} 22. Rxd8 {[%emt 0:02:16]} Rxd8 {[%emt 0:00:15]} 23. Bg5 {[%emt 0:00:04]} Rd4 {[%emt 0:02:27]} 24. f3 {[%emt 0:00:06]} h6 {[%emt 0:00:31]} 25. Be3 {[%emt 0:00:30]} Rd8 {[%emt 0:00:07]} 26. Nc5 {[%emt 0:00:30]} Bc8 {[%emt 0:00:14]} 27. Rb3 {[%emt 0:00:37]} b6 {[%emt 0:00:22]} 28. Ne4 {[%emt 0:00:18]} f5 {[%emt 0:00:24]} 29. Nc3 {[%emt 0:00:10]} Nd4 {[%emt 0:01:14]} 30. Bxd4 {[%emt 0:00:08]} Rxd4 {[%emt 0:00:52]} 31. Nb5 {[%emt 0:00:15]} Rd7 {[%emt 0:00:43]} 32. Rd3 {[%emt 0:00:04]} e4 {[%emt 0:00:52]} 33. fxe4 {[%emt 0:00:10]} fxe4 {[%emt 0:00:08]} 34. Rd6 {[%emt 0:00:13]} a6 {[%emt 0:00:27]} 35. Rxd7 {[%emt 0:00:25]} Bxd7 {[%emt 0:00:02]} 36. Nd6 {[%emt 0:00:04] Black offered a draw. #d} 1/2-1/2

[Event "African Online-ch Open 2021"]
[Site "Online"]
[Date "2021.02.01"]
[Round "1.20"]
[White "Monaheng Motlomelo"]
[Black "Simoes, Joao"]
[Result "0-1"]
[WhiteElo "1538"]
[BlackElo "2228"]
[PlyCount "64"]
[EventDate "2021.02.01"]
[EventType "swiss"]
[EventCountry "NET"]
[TimeControl "1500+10"]
[WhiteClock "0:00:42"]
[BlackClock "0:06:49"]

{Clock started by Arbiter.} 1. e4 {[%emt 0:09:09]} d5 {[%emt 0:00:11]} 2. exd5 {[%emt 0:00:06]} Qxd5 {[%emt 0:00:06]} 3. Nf3 {[%emt 0:00:03]} Nf6 {[%emt 0:00:07]} 4. Nc3 {[%emt 0:00:05]} Qd8 {[%emt 0:00:07]} 5. Be2 {[%emt 0:00:06]} Bf5 {[%emt 0:00:22]} 6. a4 {[%emt 0:00:14]} e6 {[%emt 0:00:07]} 7. d3 {[%emt 0:00:10]} Nc6 {[%emt 0:00:17]} 8. Bd2 {[%emt 0:00:13]} Bb4 {[%emt 0:00:24]} 9. O-O {[%emt 0:00:10]} h6 {[%emt 0:00:10]} 10. Na2 {[%emt 0:00:53]} Be7 {[%emt 0:00:22]} 11. Rb1 {[%emt 0:00:40]} a6 {[%emt 0:00:42]} 12. b4 {[%emt 0:00:51]} O-O {[%emt 0:00:31]} 13. Re1 {[%emt 0:02:20]} Rb8 {[%emt 0:01:54]} 14. Bc3 {[%emt 0:01:23]} b5 {[%emt 0:00:45]} 15. a5 {[%emt 0:00:21]} Qd5 {[%emt 0:00:26]} 16. Ra1 {[%emt 0:01:01]} Rfd8 {[%emt 0:00:12]} 17. Qc1 {[%emt 0:01:19]} Qd6 {[%emt 0:00:52]} 18. Bf1 {[%emt 0:00:43]} Nd5 {[%emt 0:00:31]} 19. Qb2 {[%emt 0:02:20]} Nxc3 {[%emt 0:00:27]} 20. Nxc3 {[%emt 0:01:26]} Qxb4 {[%emt 0:01:11]} 21. Nd1 {[%emt 0:01:43]} Qxb2 {[%emt 0:01:04]} 22. Nxb2 {[%emt 0:00:10]} Bf6 {[%emt 0:00:22]} 23. Rab1 {[%emt 0:00:30]} Bc3 {[%emt 0:00:46]} 24. Rec1 {[%emt 0:01:04]} g5 {[%emt 0:04:10]} 25. Nd1 {[%emt 0:00:13]} Bg7 {[%emt 0:01:18]} 26. Rb3 {[%emt 0:00:56]} g4 {[%emt 0:01:14]} 27. Nd2 {[%emt 0:00:42]} Nd4 {[%emt 0:00:15]} 28. Ra3 {[%emt 0:00:11]} b4 {[%emt 0:02:46]} 29. Ra2 {[%emt 0:00:04]} Nb5 {[%emt 0:00:11]} 30. Nb3 {[%emt 0:00:20]} Nc3 {[%emt 0:00:48]} 31. Nxc3 {[%emt 0:00:07]} Bxc3 {[%emt 0:00:08]} 32. Nc5 {[%emt 0:00:05]} Rd6 {[%emt 0:00:45] #T} 0-1